bitfinex/quotes_ETHUSD_20220219
["timestamp","ask_amount","ask_price","bid_price","bid_amount"]
[1645314450289,1.60811616,2767.3,2767.2,0.00321228]
[1645314450488,0.60811616,2767.3,2767.2,0.00321228]
[1645314450688,1.60811616,2767.3,2767.2,0.00321228]
[1645314450890,7.21939064,2767.3,2766.6,0.05]
[1645314451192,7.21939064,2767.3,2766.1,2.3872]
[1645314451193,2.3,2767.2,2766.1,2.3872]
[1645314451394,0.90464,2766.9,2766.1,1.1421]
[1645314451595,0.522,2766.8,2766.1,1.1421]
[1645314451988,0.08611616,2766.7,2765.9,2.8015]
[1645314452194,0.522,2766.6,2765.9,2.8015]
[1645314452391,0.90466,2766.3,2765.9,2.8015]
[1645314452636,0.522,2766.2,2765.7,1.03004199]
[1645314453036,0.522,2766.2,2765.9,0.05]
[1645314453336,0.522,2766.2,2765.7,1.03004199]
[1645314453537,0.522,2766.2,2765.2,0.1807]
[1645314453538,5.83136,2766.2,2765.2,0.1807]
[1645314453742,5.83136,2766.2,2764.7,2.9036]
[1645314453743,1.80996,2765.8,2764.7,2.9036]
[1645314453936,1.80996,2765.8,2764.6,2.30553452]
[1645314453937,4.322,2765.7,2764.6,2.30553452]
[1645314454337,7.529,2765.6,2764.6,2.30553452]
[1645314454536,1.7445797,2765.5,2764.7,1.02018781]
[1645314454743,0.90507,2765.2,2764.6,2.30553452]
[1645314454938,1.4270386,2765.1,2764.6,2.30553452]
[1645314455137,1.7270386,2765.1,2764.6,2.30553452]
[1645314455336,3.0270386,2765.1,2764.6,2.30553452]
[1645314455737,3.0270386,2765.1,2764.8,0.90005556]
[1645314455738,1.81002,2765.0,2764.8,0.90005556]
[1645314455939,0.522,2764.9,2764.7,0.00164688]
[1645314456789,0.522,2764.9,2764.2,1.1891]
[1645314456790,2.5,2764.8,2764.2,1.1891]
[1645314456989,0.89839978,2764.4,2764.2,0.00658861]
[1645314457189,2.33239,2764.4,2764.2,0.00658861]
[1645314457589,3.53759,2764.4,2764.2,0.00658861]
[1645314457785,1.0,2764.3,2764.2,0.00658861]
[1645314457987,1.522,2764.3,2763.8,0.2307]
[1645314458188,2.3772,2764.3,2764.2,0.00321811]
[1645314459193,2.3772,2764.3,2763.8,0.2307]
[1645314459388,2.3772,2764.3,2764.1,0.00321814]
[1645314460438,2.3772,2764.3,2763.8,0.05]
[1645314460738,0.73708135,2764.3,2764.1,0.00321817]
[1645314460940,0.522,2764.2,2764.1,0.00321817]
[1645314461538,0.522,2764.2,2763.8,0.05]
[1645314461840,0.522,2764.2,2764.0,0.0032182]
[1645314462941,0.522,2764.2,2763.8,0.05]
[1645314463145,0.522,2764.2,2764.0,0.00321823]
[1645314463985,0.522,2764.2,2763.6,8.20337069]
[1645314464185,0.522,2764.2,2764.0,0.05]
[1645314464387,0.422,2764.2,2764.0,0.00321823]
[1645314465188,0.422,2764.2,2763.8,0.05]
[1645314465491,0.422,2764.2,2764.0,0.05321823]
[1645314465690,0.722,2764.2,2764.0,0.00321823]
[1645314466089,1.022,2764.2,2764.0,0.00321823]
[1645314466492,0.90532,2764.0,2763.6,7.37]
[1645314466691,0.90532,2764.0,2763.6,7.32]
[1645314466891,1.90532,2764.0,2763.6,7.32]
[1645314467944,1.90532,2764.0,2763.7,0.00321841]
[1645314468146,0.522,2763.9,2763.7,0.00321841]
[1645314468742,0.522,2763.9,2763.1,7.37]
[1645314468945,0.90558,2763.6,2763.1,7.37]
[1645314469143,0.822,2763.5,2763.2,0.01287557]
[1645314469344,2.6332,2763.5,2763.2,0.01287557]
[1645314469747,1.0,2763.4,2763.2,0.01287557]
[1645314469943,1.0,2763.4,2763.1,7.32]
[1645314469944,0.522,2763.3,2763.1,7.32]
[1645314470146,0.90562,2763.2,2763.1,7.32]
[1645314470349,1.42762,2763.2,2763.1,7.32]
[1645314470544,1.42762,2763.2,2763.1,7.2202]
[1645314471388,0.522,2763.2,2763.1,7.2202]
[1645314471588,0.51380485,2763.2,2763.1,7.2202]
[1645314471788,1.81092,2763.5,2763.3,0.86937189]
[1645314471990,0.522,2763.4,2763.3,0.86937189]
[1645314472888,2.33305,2763.4,2763.3,0.86937189]
[1645314473088,2.63305,2763.4,2763.3,0.86937189]
[1645314473295,3.93305,2763.4,2763.3,0.86937189]
[1645314473489,5.21724,2763.3,2763.2,1.05219515]
[1645314473689,5.73924,2763.3,2763.2,1.05219515]
[1645314473893,5.73924,2763.3,2762.3,3.55]
[1645314473894,6.73924,2763.3,2762.3,3.55]
[1645314474090,0.89982207,2763.0,2762.3,3.55]
[1645314474291,0.90585,2762.8,2762.3,0.05]
[1645314474491,0.90585,2762.8,2762.2,0.9104854]
[1645314474492,0.522,2762.7,2762.2,0.9104854]
[1645314474690,0.522,2762.7,2762.0,7.32]
[1645314474891,0.522,2762.7,2762.1,1.53834473]
[1645314475141,0.522,2762.7,2762.3,0.00321656]
[1645314475338,0.522,2762.7,2762.1,1.44156129]
[1645314475537,0.522,2762.7,2762.0,7.32]
[1645314475739,2.33372,2762.7,2762.0,7.32]
[1645314475942,0.90583,2762.5,2762.0,7.32]
[1645314476238,0.522,2762.4,2762.0,7.32]
[1645314476437,0.522,2762.4,2762.0,8.23235772]
[1645314477039,0.522,2762.4,2762.0,7.32]
[1645314477241,0.522,2762.4,2761.6,1.2308]
[1645314477440,0.9059,2762.1,2761.5,3.6809]
[1645314477638,0.9059,2762.1,2761.5,0.1809]
[1645314477639,0.522,2762.0,2761.5,0.1809]
[1645314477838,0.522,2762.0,2761.4,7.32]
[1645314477839,0.9059,2762.1,2762.0,1.044]
[1645314478907,0.9059,2762.1,2762.0,0.994]
[1645314478908,1.7279,2762.1,2762.0,0.994]
[1645314479706,1.7279,2762.1,2762.0,0.944]
[1645314480506,1.7279,2762.1,2761.5,0.01286912]
[1645314480507,0.61223343,2761.9,2761.5,0.01286912]
[1645314480709,0.522,2761.8,2761.5,0.01286912]
[1645314480909,0.522,2761.8,2760.6,2.42369111]
[1645314480910,0.90637,2761.5,2760.6,2.42369111]
[1645314481108,0.522,2761.4,2760.5,7.32]
[1645314481409,0.522,2761.4,2760.6,0.89249273]
[1645314481410,1.58154557,2761.4,2760.6,0.89249273]
[1645314481605,1.58154557,2761.4,2760.6,0.9328508]
[1645314481808,1.58154557,2761.4,2760.6,0.04035807]
[1645314482015,7.43537,2761.2,2760.6,0.04035807]
[1645314482211,0.522,2761.1,2760.6,0.04035807]
[1645314482419,0.522,2761.1,2760.7,0.53029124]
[1645314482654,1.522,2761.1,2760.7,0.53029124]
[1645314483063,1.04097776,2760.8,2760.7,0.53029124]
[1645314483359,2.5,2760.7,2760.6,0.04035807]
[1645314483556,3.022,2760.7,2760.6,5.807e-05]
[1645314483758,10.551,2760.7,2760.0,7.32]
[1645314483963,7.43573,2760.6,2760.0,7.32]
[1645314484160,7.43573,2760.6,2760.0,6.7376]
[1645314484161,2.3354756,2760.5,2760.0,6.7376]
[1645314484362,2.3354756,2760.5,2759.1,0.67934293]
[1645314484363,1.81395,2760.3,2759.1,0.67934293]
[1645314484560,0.93787485,2759.8,2759.1,0.00399359]
[1645314484760,6.529,2759.9,2759.1,0.00399359]
[1645314484761,0.522,2759.7,2759.1,0.00399359]
[1645314484958,5.45191524,2759.9,2759.1,0.68333652]
[1645314485160,0.9068844,2759.7,2759.1,0.00399359]
[1645314485363,0.9068844,2759.7,2758.5,1.3849642]
[1645314485364,6.529,2759.2,2758.5,0.00399359]
[1645314485561,6.529,2759.2,2758.2,0.67934293]
[1645314485763,0.522,2759.1,2758.4,0.68335929]
[1645314485963,0.522,2759.1,2758.7,0.00164415]
[1645314486160,0.522,2759.1,2758.6,1.16681458]
[1645314486394,0.522,2759.1,2758.6,1.17083094]
[1645314486791,0.87176449,2759.6,2758.7,2.5]
[1645314486993,0.522,2759.5,2758.7,2.50401636]
[1645314487192,0.522,2759.5,2758.8,0.00401636]
[1645314487392,0.522,2759.5,2759.3,1.04896375]
[1645314487593,0.90684,2759.4,2758.8,0.00401636]
[1645314487792,0.17806009,2759.7,2758.8,0.00401636]
[1645314488095,8.6278,2761.0,2758.8,0.00401636]
[1645314488096,0.522,2759.6,2758.8,11.10401636]
[1645314488295,0.522,2760.2,2759.0,12.02211096]
[1645314488495,3.5,2760.5,2759.1,1.10722732]
[1645314488692,3.5,2760.5,2759.2,11.1]
[1645314488896,3.5,2760.5,2759.3,0.1811]
[1645314489102,0.90644,2760.5,2759.9,1.09382904]
[1645314489696,1.90644,2760.5,2759.9,1.09382904]
[1645314490740,1.90644,2760.5,2759.6,0.01288393]
[1645314491141,0.522,2760.4,2759.6,0.01288393]
[1645314491340,0.90669,2760.2,2759.6,0.01288393]
[1645314491743,0.90669,2760.2,2759.3,2.9615]
[1645314491941,1.05765313,2760.0,2759.3,2.97438465]
[1645314492141,4.022,2759.9,2759.3,0.01288465]
[1645314492342,1.90679,2759.8,2759.3,0.01288465]
[1645314492541,0.522,2759.7,2759.3,0.01288465]
[1645314493040,0.522,2759.7,2758.7,0.00401636]
[1645314493041,0.522,2759.7,2758.8,0.98610911]
[1645314493240,0.522,2759.7,2758.9,0.01690196]
[1645314493641,0.90686,2759.5,2758.9,0.01690196]
[1645314493892,2.20686,2759.5,2758.9,3.5]
[1645314494090,2.20686,2759.5,2758.8,0.75301107]
[1645314494295,2.20686,2759.5,2758.9,3.5]
[1645314494792,2.20686,2759.5,2758.8,0.75301107]
[1645314494991,3.07464929,2759.5,2758.8,0.75301107]
[1645314495192,0.522,2759.4,2758.8,0.75301107]
[1645314495390,0.522,2759.4,2758.9,1.53997718]
[1645314495694,0.90691,2759.2,2758.9,1.53997718]
[1645314495890,1.42891,2759.2,2758.9,1.53997718]
[1645314496594,1.42891,2759.2,2759.0,1.53997718]
[1645314496595,1.72891,2759.2,2759.0,1.53997718]
[1645314496800,1.72891,2759.2,2758.8,0.00322396]
[1645314496801,2.03213346,2759.2,2758.8,0.00322396]
[1645314496990,3.03213346,2759.2,2758.8,0.00322396]
[1645314497190,3.08213346,2759.2,2758.8,0.00322396]
[1645314497390,0.98941433,2759.1,2758.8,0.00322396]
[1645314497643,1.4292014,2759.0,2758.7,1.54024451]
[1645314497844,0.90722,2758.9,2758.8,1.54024451]
[1645314498044,1.42922,2758.9,2758.8,0.00322391]
[1645314498444,0.9072,2758.8,2758.1,0.67851217]
[1645314498646,1.04533521,2758.6,2758.2,0.09408608]
[1645314498847,0.522,2758.5,2758.1,0.75969941]
[1645314499244,0.13607449,2758.7,2758.1,0.75969941]
[1645314499457,0.9072311,2758.8,2758.1,0.09408608]
[1645314499458,0.522,2758.6,2758.1,0.09408608]
[1645314499744,0.522,2758.5,2758.1,0.09408608]
[1645314500344,0.522,2758.5,2758.2,0.00322423]
[1645314500643,2.45963529,2758.6,2758.2,0.00322423]
[1645314500844,0.522,2758.5,2758.2,0.00322423]
[1645314501296,0.522,2758.5,2758.1,0.09408608]
[1645314501787,1.30104043,2758.7,2758.2,0.0032242]
[1645314501991,0.3,2758.6,2758.2,0.0032242]
[1645314502387,2.30104043,2758.7,2758.3,0.09408608]
[1645314502587,0.3,2758.6,2758.3,0.09408608]
[1645314502787,1.3,2758.6,2758.3,0.09731025]
[1645314502988,2.2072,2758.6,2758.3,0.09731025]
[1645314503190,0.9072,2758.6,2758.3,0.09731025]
[1645314503487,2.2072,2758.6,2758.3,0.09731025]
[1645314503689,0.9072,2758.6,2758.0,0.09408608]
[1645314503891,2.2072,2758.6,2758.0,0.09408608]
[1645314504091,1.2072,2758.6,2758.3,0.00322414]
[1645314504292,3.5,2758.5,2758.3,0.00322414]
[1645314504598,2.3367159,2758.5,2758.3,0.00322414]
[1645314504792,2.47304201,2758.4,2758.3,0.00322414]
[1645314505046,0.9074,2758.3,2758.0,0.09408608]
[1645314505247,0.522,2758.2,2758.0,0.09408608]
[1645314505747,0.822,2758.2,2758.0,0.09408608]
[1645314506147,1.122,2758.2,2758.0,0.09408608]
[1645314506347,1.122,2758.2,2758.0,0.09731043]
[1645314506549,4.622,2758.2,2758.0,0.09731043]
[1645314506948,1.0,2758.1,2758.0,0.09731043]
[1645314507151,1.522,2758.1,2758.0,0.09731043]
[1645314507347,1.522,2758.1,2758.0,0.09408608]
[1645314507950,7.129584,2758.3,2758.0,0.09408608]
[1645314507951,2.51445004,2758.3,2758.0,0.09408608]
[1645314508148,0.522,2758.2,2758.0,0.09408608]
[1645314508349,0.522,2758.2,2757.9,0.00322438]
[1645314508350,0.9074,2758.3,2758.2,1.13511853]
[1645314513447,1.9074,2758.3,2758.2,1.13511853]
[1645314513645,1.2074,2758.3,2758.2,1.13511853]
[1645314513844,2.2074,2758.3,2758.2,1.13511853]
[1645314514044,1.2074,2758.3,2758.2,1.13511853]
[1645314514243,0.9074,2758.3,2758.2,1.13511853]
[1645314514444,2.2074,2758.3,2758.2,1.13511853]
[1645314515044,3.0294,2758.3,2758.2,1.13511853]
[1645314515243,2.7294,2758.3,2758.2,1.13511853]
[1645314515446,1.4294,2758.3,2758.2,1.13511853]
[1645314515945,2.4294,2758.3,2758.2,1.13511853]
[1645314516794,1.3,2758.3,2758.2,1.13511853]
[1645314517193,3.8,2758.3,2758.2,1.13511853]
[1645314517402,5.2294,2758.3,2758.2,1.13511853]
[1645314517592,5.2294,2758.3,2758.1,0.00322687]
[1645314517794,6.0,2758.2,2758.1,0.00322687]
[1645314517992,7.122,2758.2,2758.1,0.00322687]
[1645314518193,7.122,2758.2,2757.7,1.05328098]
[1645314518194,7.99755802,2758.2,2757.7,1.05328098]
[1645314518395,3.7224528,2758.1,2758.0,0.00322693]
[1645314518696,4.2444528,2758.1,2758.0,1.05650791]
[1645314518892,4.2444528,2758.1,2758.0,2.59734474]
[1645314519295,7.08732232,2758.1,2758.0,2.59411781]
[1645314519697,7.99481232,2758.1,2758.0,2.59411781]
[1645314519900,7.99481232,2758.1,2757.9,0.00322699]
[1645314519901,0.3,2758.0,2757.9,0.00322699]
[1645314520151,0.3,2758.0,2757.5,0.0129099]
[1645314520152,2.5,2757.9,2757.5,0.0129099]
[1645314520350,0.522,2757.8,2757.5,0.0129099]
[1645314520545,1.4296031,2757.8,2757.2,0.66561333]
[1645314520747,1.99346715,2757.8,2757.2,0.66561333]
[1645314520951,1.99346715,2757.8,2757.1,0.63726909]
[1645314521146,0.3,2757.7,2757.1,0.63726909]
[1645314521346,1.71128556,2757.6,2757.1,0.63726909]
[1645314521550,4.1525784,2757.6,2757.0,4.02966905]
[1645314521948,0.90766,2757.5,2757.0,4.02966905]
[1645314522149,3.33729,2757.5,2757.0,1.17976905]
[1645314522951,1.81531,2757.4,2757.0,1.17976905]
[1645314523150,1.81531,2757.4,2757.1,0.00162917]
[1645314523552,1.81531,2757.4,2757.2,0.50540015]
[1645314523553,2.72297,2757.4,2757.2,0.50540015]
[1645314523804,2.72297,2757.4,2756.7,0.00651768]
[1645314523805,2.5,2757.2,2756.7,0.00651768]
[1645314524004,1.4299317,2757.1,2756.7,0.00651768]
[1645314524199,1.4299317,2757.1,2756.3,0.92211096]
[1645314524200,0.90796,2757.0,2756.3,0.99755175]
[1645314524399,0.822,2756.9,2756.3,0.99755175]
[1645314524596,0.822,2756.9,2756.2,3.87621096]
[1645314524597,1.122,2756.9,2756.2,3.87621096]
[1645314524798,1.816,2756.7,2756.2,0.92211096]
[1645314525000,3.2459476,2756.6,2756.2,0.92211096]
[1645314525305,0.6,2756.9,2756.6,0.04248748]
[1645314525505,0.522,2756.8,2756.6,0.04248748]
[1645314526399,2.33763,2756.8,2756.7,0.87562127]
[1645314528643,0.05179,2757.4,2756.7,0.87562127]
[1645314529041,0.05179,2757.4,2756.8,3.5]
[1645314529340,0.05179,2757.4,2756.9,0.00322503]
[1645314529845,0.05179,2757.4,2756.9,12.02533599]
[1645314530039,1.81477,2758.0,2757.0,3.6812]
[1645314530241,2.7219731,2758.7,2757.1,11.1]
[1645314530242,0.90724,2758.1,2757.1,11.1]
[1645314530444,0.90724,2758.1,2757.2,3.6812]
[1645314530640,0.90724,2758.1,2757.1,0.1812]
[1645314531040,0.90724,2758.1,2757.2,0.67651207]
[1645314531306,0.90724,2758.1,2757.4,0.87109885]
[1645314531690,0.90724,2758.1,2758.0,1.14414196]
[1645314531892,0.90724,2758.1,2757.4,7.32]
[1645314532995,0.90724,2758.1,2757.5,0.89716281]
[1645314533190,0.90724,2758.1,2757.5,4.39716281]
[1645314534293,1.91051347,2758.6,2757.6,11.1]
[1645314534294,0.00322347,2758.6,2757.6,11.1]
[1645314534493,0.00322347,2758.6,2757.7,3.5]
[1645314534892,3.5532,2759.1,2757.7,3.5]
[1645314534893,3.0532,2759.1,2757.7,3.5]
[1645314535150,3.0532,2759.1,2758.5,0.85087923]
[1645314535345,0.00322367,2758.6,2758.5,0.85087923]
[1645314536246,0.85703,2758.9,2758.5,0.85087923]
[1645314536446,0.00322382,2758.7,2758.5,0.85087923]
[1645314537447,0.85703,2758.9,2758.5,0.85087923]
[1645314537649,0.0032238,2758.7,2758.5,0.85087923]
[1645314538450,0.9103038,2758.7,2757.9,6.55]
[1645314538649,1.81421,2758.9,2757.9,3.5]
[1645314538897,2.4685038,2759.2,2757.9,3.5]
[1645314538898,0.0032238,2758.7,2757.9,3.5]
[1645314539597,0.97956836,2758.7,2757.9,1.14217274]
[1645314539796,0.90715,2758.4,2757.9,1.14217274]
[1645314540199,0.6,2758.4,2757.6,0.01834916]
[1645314540594,0.3,2758.5,2757.6,0.01834916]
[1645314540798,0.522,2758.5,2757.6,0.01834916]
[1645314541197,2.95547288,2758.2,2757.6,0.01834916]
[1645314541397,1.522,2758.1,2757.6,0.01834916]
[1645314542398,0.9073,2758.0,2757.6,0.01834916]
[1645314543444,1.522,2758.1,2757.6,0.01834916]
[1645314543445,1.522,2758.5,2757.9,0.89496237]
[1645314543640,1.0,2758.5,2757.9,0.89496237]
[1645314543841,0.00322084,2758.6,2757.9,0.89496237]
[1645314544040,0.00322084,2758.6,2758.0,3.5]
[1645314544237,0.00322084,2758.6,2757.9,0.89496237]
[1645314544638,0.04293,2758.8,2758.5,1.10041786]
[1645314544839,0.0032211,2758.6,2758.5,1.10041786]
[1645314545040,0.0032211,2758.6,2757.6,0.01834916]
[1645314545938,3.1142,2758.9,2757.6,0.01834916]
[1645314545939,0.90715,2758.4,2757.6,0.01834916]
[1645314546146,0.90715,2758.4,2758.2,0.91775173]
[1645314546800,0.90715,2758.4,2757.6,0.01834916]
[1645314547000,0.90715,2758.4,2757.3,0.1812]
[1645314547001,1.42915,2758.4,2757.3,0.1812]
[1645314547200,0.90743,2758.1,2757.2,4.6333]
[1645314547402,1.42943,2758.1,2757.2,4.6333]
[1645314547597,0.522,2758.1,2757.2,4.6333]
[1645314547799,0.522,2758.1,2757.6,1.10120039]
[1645314548903,0.90728,2758.0,2757.6,1.10120039]
[1645314549699,1.20728,2758.0,2757.6,1.10120039]
[1645314549900,1.72928,2758.0,2757.2,1.1333]
[1645314550162,0.90738,2757.8,2757.1,0.01289066]
[1645314550557,0.90738,2757.8,2757.0,6.3636]
[1645314550756,0.90738,2757.8,2757.0,6.36682257]
[1645314551159,0.90738,2757.8,2757.3,1.16799761]
[1645314551560,2.42928,2758.0,2757.3,1.16799761]
[1645314551761,0.1,2758.3,2757.3,1.16799761]
[1645314552463,0.85567314,2758.2,2757.3,1.16799761]
[1645314552660,0.90731,2758.0,2757.3,1.16799761]
[1645314552863,0.90731,2758.0,2757.4,1.5408833]
[1645314553065,0.1,2758.3,2757.4,21.1408833]
[1645314553264,0.1,2758.3,2757.6,11.1]
[1645314553561,0.1,2758.3,2757.7,3.5]
[1645314553799,0.1,2758.3,2758.1,1.17610394]
[1645314557542,0.91033107,2758.6,2758.1,1.17610394]
[1645314557543,0.91033107,2758.6,2758.2,6.0]
[1645314557750,2.84222927,2759.0,2758.2,22.1]
[1645314557945,2.6301,2760.0,2758.2,17.1]
[1645314558145,0.00322107,2758.6,2758.4,11.1]
[1645314558343,0.00322107,2758.6,2758.5,14.6]
[1645314559043,0.90671,2759.8,2758.5,14.6]
[1645314559248,1.81346,2760.0,2758.6,0.00966321]
[1645314559249,0.00160174,2758.7,2758.6,0.00966321]
[1645314559443,0.00160174,2758.7,2758.6,3.50966321]
[1645314560044,0.00160174,2758.7,2758.6,4.56635001]
[1645314560244,0.90679,2759.5,2759.1,1.00877097]
[1645314561694,0.00322075,2759.4,2759.1,1.00877097]
[1645314562695,0.90679,2759.5,2759.1,1.00877097]
[1645314562892,0.00322078,2759.4,2759.1,1.00877097]
[1645314563895,0.90679,2759.5,2759.1,1.00877097]
[1645314564095,0.00322078,2759.4,2759.1,1.00877097]
[1645314564295,0.00322078,2759.4,2759.2,3.5]
[1645314564698,0.00322078,2759.4,2759.3,11.1]
[1645314564897,0.00322078,2759.4,2759.3,14.6]
[1645314565151,4.15273202,2760.7,2760.0,1.01441982]
[1645314565448,1.81316,2760.5,2759.4,7.0794]
[1645314566247,2.81316,2760.5,2759.8,1.0946644]
[1645314566449,0.00322037,2760.1,2759.8,1.0946644]
[1645314566648,0.90984037,2760.1,2759.8,1.0946644]
[1645314566848,0.00322037,2760.1,2759.9,3.5]
[1645314567053,0.00322037,2760.1,2759.9,14.6]
[1645314567249,0.00322037,2760.1,2760.0,3.5]
[1645314567452,1.81289,2760.9,2760.0,3.5]
[1645314567650,0.00322034,2760.1,2760.0,3.5]
[1645314568650,1.81289,2760.9,2760.0,3.5]
[1645314568895,0.00322031,2760.2,2760.0,3.5]
[1645314569099,0.00322031,2760.2,2759.8,1.0946644]
[1645314569895,1.81309,2760.6,2759.8,1.0946644]
[1645314570104,0.00322034,2760.1,2759.8,1.0946644]
[1645314571095,0.90657,2760.2,2759.8,1.0946644]
[1645314571294,0.00322037,2760.1,2759.8,1.0946644]
[1645314571499,0.00322037,2760.1,2759.4,7.0794]
[1645314571700,0.00322037,2760.1,2759.4,2.876]
[1645314571896,0.522,2760.0,2759.4,2.876]
[1645314572096,0.90667,2759.9,2759.4,2.876]
[1645314572300,1.42867,2759.9,2759.1,3.60268785]
[1645314572543,0.00322052,2759.8,2759.1,3.60268785]
[1645314572743,0.00322052,2759.8,2759.5,1.17677837]
[1645314573145,0.52522052,2759.8,2759.5,1.17677837]
[1645314573446,0.522,2759.8,2759.5,1.17677837]
[1645314573647,0.52522055,2759.8,2759.5,1.17677837]
[1645314574045,0.9068,2759.6,2759.5,1.17677837]
[1645314574346,1.00322055,2759.8,2759.5,1.17677837]
[1645314574547,1.81321,2760.4,2759.5,1.17677837]
[1645314574548,1.0,2760.1,2759.5,1.17677837]
[1645314574747,1.81321,2760.4,2759.5,1.17677837]
[1645314574957,0.0032206,2759.7,2759.5,1.17677837]
[1645314575353,0.0032206,2759.7,2759.5,12.27677837]
[1645314575751,2.94725,2760.8,2759.5,12.27677837]
[1645314575950,1.81295,2760.8,2759.5,12.27677837]
[1645314576153,0.00322058,2759.7,2759.6,3.5]
[1645314576800,2.058e-05,2759.7,2759.6,14.6]
[1645314576997,2.81295,2760.8,2759.6,14.6]
[1645314576998,1.0,2760.8,2759.6,14.6]
[1645314577195,7.60518,2761.2,2759.6,14.6]
[1645314577196,1.0,2761.1,2759.6,14.6]
[1645314577394,1.3,2761.1,2759.6,14.6]
[1645314577596,1.6,2761.1,2759.6,14.6]
[1645314577795,1.6,2761.1,2761.0,1.05648525]
[1645314577994,0.9063,2761.1,2761.0,1.05648525]
[1645314579398,1.0,2761.1,2761.0,1.05648525]
[1645314579597,3.74609503,2761.4,2761.0,1.05648525]
[1645314579798,2.83990503,2761.4,2761.0,1.05648525]
[1645314580042,0.522,2761.9,2761.0,1.05648525]
[1645314580043,1.06486179,2761.9,2761.0,1.05648525]
[1645314580347,3.36128946,2761.9,2761.0,1.05648525]
[1645314580941,0.00321949,2761.6,2761.0,1.05648525]
[1645314582044,1.5061,2761.7,2761.0,1.05648525]
[1645314582244,1.5061,2761.7,2761.1,3.5]
[1645314582245,0.00321958,2761.4,2761.1,3.5]
[1645314582444,0.00321958,2761.4,2760.5,14.7809]
[1645314583044,1.0,2762.0,2760.5,15.68685]
[1645314583252,1.3,2762.0,2761.7,1.11296487]
[1645314583897,0.3,2762.0,2761.7,1.11296487]
[1645314584597,0.30321925,2762.0,2761.7,1.11296487]
[1645314585403,0.3,2762.0,2761.7,1.11296487]
[1645314585900,0.30321925,2762.0,2761.7,1.11296487]
[1645314586701,0.3,2762.0,2761.7,1.11296487]
[1645314586901,0.30321925,2762.0,2761.7,1.11296487]
[1645314587946,0.3,2762.0,2761.7,1.11296487]
[1645314588144,0.30321925,2762.0,2761.7,1.11296487]
[1645314589045,0.90599,2762.1,2761.7,1.11296487]
[1645314589346,0.00321925,2762.0,2761.7,1.11296487]
[1645314590342,1.90599,2762.1,2761.7,1.11296487]
[1645314590547,0.00321925,2762.0,2761.7,1.11296487]
[1645314590747,0.90615,2761.7,2760.8,4.2127]
[1645314590945,0.522,2761.6,2760.8,4.2127]
[1645314591393,0.522,2761.6,2760.8,3.0036]
[1645314591798,0.522,2761.6,2761.1,0.91554102]
[1645314591799,0.00321963,2761.3,2761.1,0.91554102]
[1645314592698,0.522,2761.3,2760.8,0.1966]
[1645314592896,0.52521963,2761.3,2760.8,0.1966]
[1645314593899,0.522,2761.3,2760.8,0.1966]
[1645314594098,0.00321972,2761.2,2760.8,0.1966]
[1645314594301,1.42848,2761.1,2760.8,0.1966]
[1645314594697,3.02848,2761.1,2760.8,0.1966]
[1645314595349,0.90653,2761.0,2760.8,0.1966]
[1645314595552,0.822,2760.9,2760.8,0.1966]
[1645314595854,1.822,2760.9,2760.8,0.1966]
[1645314596952,1.822,2760.9,2760.6,0.86373936]
[1645314597151,0.90644,2760.8,2760.6,0.86373936]
[1645314597351,0.522,2760.7,2760.6,0.86373936]
[1645314597553,0.822,2760.7,2760.6,0.86373936]
[1645314597753,0.522,2760.7,2760.6,0.86373936]
[1645314598554,0.522,2760.7,2759.8,3.0256]
[1645314598798,0.522,2760.7,2759.8,0.1811]
[1645314598799,0.90655,2760.5,2759.8,0.1811]
[1645314598998,0.90655,2760.5,2759.6,1.1397]
[1645314599700,0.90655,2760.5,2760.2,0.98263416]
[1645314600098,1.42872,2760.4,2759.5,2.7278]
[1645314600302,1.42872,2760.4,2759.3,0.1811]
[1645314600498,0.90677,2760.1,2759.3,0.1811]
[1645314600698,0.522,2760.0,2759.3,0.1811]
[1645314601201,0.522,2760.0,2759.4,0.86636157]
[1645314601400,0.00322049,2759.8,2759.4,0.86636157]
[1645314602298,0.90681,2759.8,2759.4,0.85464718]
[1645314602542,0.91003046,2759.8,2759.4,0.85464718]
[1645314603243,0.00322046,2759.8,2759.4,0.85464718]
[1645314603448,0.522,2760.2,2759.4,0.85464718]
[1645314603644,0.90661,2760.1,2759.4,0.85464718]
[1645314603843,0.00322046,2759.8,2759.4,0.85464718]
[1645314604646,0.522,2760.2,2759.4,0.85464718]
[1645314604845,0.522,2760.2,2759.9,1.04961709]
[1645314605048,1.81343,2760.1,2759.9,1.04961709]
[1645314605246,1.81343,2760.1,2759.1,0.10268785]
[1645314605850,3.84223,2760.1,2759.1,0.10268785]
[1645314606053,3.24223,2760.1,2759.1,0.10268785]
[1645314606301,0.00322046,2759.8,2759.1,0.10268785]
[1645314606493,0.00322046,2759.8,2759.2,12.23434415]
[1645314607095,0.522,2760.4,2759.2,12.23434415]
[1645314607297,0.0032204,2759.8,2759.3,3.5]
[1645314607494,0.0032204,2759.8,2759.2,12.23434415]
[1645314607695,0.0032204,2759.8,2759.2,1.13434415]
[1645314608295,0.90656,2760.3,2759.3,3.5]
[1645314608497,0.0032204,2759.8,2759.3,3.5]
[1645314609498,0.90656,2760.3,2759.3,3.5]
[1645314609700,0.00322043,2759.8,2759.7,0.95492653]
[1645314610152,1.81332,2760.2,2759.8,2.5]
[1645314610355,6.84641,2760.9,2759.9,3.5]
[1645314610356,1.5,2760.9,2759.9,3.5]
[1645314610550,2.84060427,2761.3,2759.9,14.6]
[1645314610751,0.5,2762.1,2759.9,14.6]
[1645314610752,0.90627,2761.8,2759.9,14.6]
[1645314610949,0.90621,2761.5,2760.1,11.1]
[1645314611150,0.90621,2761.5,2760.2,14.6]
[1645314611359,0.90621,2761.5,2761.3,0.88595355]
[1645314612852,0.90621,2761.5,2760.3,0.1809]